bitfinex/quotes_BTCUSD_20250802
["timestamp","ask_amount","ask_price","bid_price","bid_amount"]
[1754151786574,1.78840064,113120.0,113110.0,0.03429]
[1754151786820,2.11749544,113120.0,113100.0,0.13832989]
[1754151787054,2.11749544,113120.0,113110.0,0.13988]
[1754151787055,2.13133668,113120.0,113110.0,0.13988]
[1754151787288,2.13133668,113120.0,113100.0,0.025]
[1754151787289,0.34,113110.0,113100.0,0.025]
[1754151787507,0.34,113110.0,113100.0,0.16488]
[1754151788639,0.34,113110.0,113100.0,0.19701]
[1754151789344,0.34,113110.0,113100.0,0.20008]
[1754151790483,0.34,113110.0,113100.0,0.0602]
[1754151790724,0.34,113110.0,113100.0,0.20008]
[1754151791181,0.34,113110.0,113100.0,0.20217]
[1754151793123,0.34,113110.0,113100.0,0.06229]
[1754151793358,1.80124188,113120.0,113100.0,0.78708427]
[1754151793559,1.78740064,113120.0,113110.0,0.08419989]
[1754151793754,1.78740064,113120.0,113110.0,0.11848989]
[1754151794578,1.78840064,113120.0,113110.0,0.25832989]
[1754151795200,1.78740064,113120.0,113110.0,0.25832989]
[1754151795412,1.78740064,113120.0,113110.0,0.25932989]
[1754151796472,1.801241,113120.0,113110.0,0.25932989]
[1754151796678,1.78840064,113120.0,113110.0,0.25932989]
[1754151796888,1.80224102,113120.0,113110.0,0.25932989]
[1754151797261,1.80224102,113120.0,113110.0,0.11948989]
[1754151797474,1.80224102,113120.0,113110.0,0.25932989]
[1754151798531,1.80224102,113120.0,113110.0,0.11948989]
[1754151798777,1.80224102,113120.0,113110.0,0.25928989]
[1754151799714,1.80224102,113120.0,113110.0,0.11948989]
[1754151799941,1.80224102,113120.0,113110.0,0.25928989]
[1754151802700,1.80224102,113120.0,113110.0,0.11948989]
[1754151802936,1.80224102,113120.0,113110.0,0.25928989]
[1754151807658,1.80224102,113120.0,113110.0,0.25920989]
[1754151810810,1.80224102,113120.0,113110.0,0.58817473]
[1754151815441,1.80224102,113120.0,113110.0,0.44845473]
[1754151815679,1.80224102,113120.0,113110.0,0.58813473]
[1754151815891,1.80224102,113120.0,113110.0,0.44845473]
[1754151816155,1.80224102,113120.0,113110.0,0.58813473]
[1754151817103,1.78840064,113120.0,113110.0,0.58813473]
[1754151817330,1.78740064,113120.0,113110.0,0.58813473]
[1754151817791,1.78740064,113120.0,113110.0,0.11848989]
[1754151818016,1.78740064,113120.0,113110.0,0.26012989]
[1754151818242,1.78740064,113120.0,113110.0,0.12048989]
[1754151818472,1.78740064,113120.0,113110.0,0.26012989]
[1754151819223,2.28740064,113120.0,113110.0,0.44945473]
[1754151819457,2.28740064,113120.0,113110.0,0.12048989]
[1754151819668,2.28740064,113120.0,113110.0,0.26012989]
[1754151819886,2.30124067,113120.0,113110.0,0.26012989]
[1754151821003,2.30124067,113120.0,113110.0,0.58909473]
[1754151822350,2.30124067,113120.0,113110.0,0.26012989]
[1754151822572,2.30124067,113120.0,113110.0,0.58909473]
[1754151823280,1.80124067,113120.0,113110.0,0.58905473]
[1754151823984,1.78740064,113120.0,113110.0,0.58905473]
[1754151828207,1.8012404,113120.0,113110.0,0.58905473]
[1754151829153,1.8012404,113120.0,113110.0,0.26008989]
[1754151829367,1.8012404,113120.0,113110.0,0.58905473]
[1754151830248,1.8012404,113120.0,113110.0,0.26008989]
[1754151836986,1.78740064,113120.0,113110.0,0.26008989]
[1754151838442,1.578849,113120.0,113110.0,0.26008989]
[1754151839691,1.59268882,113120.0,113110.0,0.26008989]
[1754151841045,1.59268882,113120.0,113110.0,0.58905473]
[1754151841440,1.59268882,113120.0,113110.0,0.26008989]
[1754151842236,1.59268882,113120.0,113110.0,0.58905473]
[1754151842848,1.59268882,113120.0,113110.0,0.08619989]
[1754151843046,1.59268882,113120.0,113110.0,0.22563989]
[1754151843251,1.59268882,113120.0,113110.0,0.26018989]
[1754151843875,1.59268882,113120.0,113110.0,0.26222989]
[1754151844701,1.59268882,113120.0,113110.0,0.26018989]
[1754151845534,1.59268882,113120.0,113110.0,0.12074989]
[1754151845742,1.59268882,113120.0,113110.0,0.26018989]
[1754151845948,1.59268882,113120.0,113110.0,0.26222989]
[1754151846161,1.59268882,113120.0,113110.0,0.12278989]
[1754151846575,1.59268882,113120.0,113110.0,0.26218989]
[1754151848005,1.59268882,113120.0,113110.0,0.26014989]
[1754151851162,1.59268882,113120.0,113110.0,0.12074989]
[1754151851373,1.59268882,113120.0,113110.0,0.26014989]
[1754151852857,1.59268882,113120.0,113110.0,0.26218989]
[1754151853086,1.59268882,113120.0,113110.0,0.12278989]
[1754151853308,1.59268882,113120.0,113110.0,0.26214989]
[1754151853525,1.59268882,113120.0,113110.0,0.26010989]
[1754151857714,1.59268882,113120.0,113110.0,0.26006989]
[1754151857945,1.59268882,113120.0,113110.0,0.26210989]
[1754151863178,1.59268882,113120.0,113110.0,0.59107473]
[1754151869687,1.59268882,113120.0,113110.0,0.26210989]
[1754151869899,1.59268882,113120.0,113110.0,0.59107473]
[1754151870090,1.578849,113120.0,113110.0,0.59107473]
[1754151871080,1.578849,113120.0,113110.0,0.59307473]
[1754151871535,1.578849,113120.0,113110.0,0.61740925]
[1754151871954,1.578849,113120.0,113110.0,0.62040925]
[1754151872582,2.078849,113120.0,113110.0,0.62040925]
[1754151872806,2.09268718,113120.0,113110.0,0.62040925]
[1754151873614,2.078849,113120.0,113110.0,0.62040925]
[1754151873821,2.078849,113120.0,113110.0,0.96040925]
[1754151874037,2.078849,113120.0,113110.0,0.98506022]
[1754151874262,2.078849,113120.0,113110.0,1.45010311]
[1754151874476,1.80343797,113120.0,113110.0,1.38147408]
[1754151874684,1.60913804,113120.0,113110.0,1.38147408]
[1754151874902,1.60913804,113120.0,113110.0,1.47475408]
[1754151875119,1.60913804,113120.0,113110.0,1.37847408]
[1754151875337,1.46619683,113120.0,113110.0,1.52847408]
[1754151875560,1.46467023,113120.0,113110.0,1.53347408]
[1754151875775,1.46467023,113120.0,113110.0,1.53147408]
[1754151875982,1.45457168,113120.0,113110.0,1.80117408]
[1754151876244,1.25855841,113120.0,113110.0,1.80317408]
[1754151876416,1.24788963,113120.0,113110.0,1.80317408]
[1754151876852,1.24788963,113120.0,113110.0,1.80117408]
[1754151877296,1.24788963,113120.0,113110.0,1.80517408]
[1754151877917,1.24788963,113120.0,113110.0,1.77532311]
[1754151878539,0.74788963,113120.0,113110.0,1.77532311]
[1754151878814,0.74788963,113120.0,113110.0,1.79995741]
[1754151879324,0.74788963,113120.0,113110.0,1.77932311]
[1754151881154,0.74788963,113120.0,113110.0,1.80589311]
[1754151881629,0.54662509,113120.0,113110.0,1.80589311]
[1754151881858,0.20104641,113120.0,113110.0,1.56082741]
[1754151882308,0.20104641,113120.0,113110.0,1.83052741]
[1754151884127,0.20104641,113120.0,113110.0,1.80589311]
[1754151884593,0.20104641,113120.0,113110.0,1.04636343]
[1754151884825,0.20104641,113120.0,113110.0,1.05391441]
[1754151885056,0.20104641,113120.0,113110.0,1.18191925]
[1754151885283,0.20104641,113120.0,113110.0,1.53936827]
[1754151885761,0.20104641,113120.0,113110.0,1.86833311]
[1754151885985,0.20104641,113120.0,113110.0,1.53936827]
[1754151886200,0.20104641,113120.0,113110.0,1.86833311]
[1754151886679,0.20104641,113120.0,113110.0,1.53932827]
[1754151888489,0.20104641,113120.0,113110.0,1.40032827]
[1754151888705,0.20104641,113120.0,113110.0,1.53932827]
[1754151894197,0.20104641,113120.0,113110.0,1.86825311]
[1754151894409,0.20104641,113120.0,113110.0,1.87308211]
[1754151894626,0.20104641,113120.0,113110.0,1.54411727]
[1754151896032,0.20104641,113120.0,113110.0,1.54407727]
[1754151897380,0.20104641,113120.0,113110.0,1.51907727]
[1754151897597,0.20104641,113120.0,113110.0,1.54407727]
[1754151898086,0.20104641,113120.0,113110.0,1.87304211]
[1754151901012,0.20104641,113120.0,113110.0,1.54403727]
[1754151901467,0.20104641,113120.0,113110.0,1.50158825]
[1754151901946,0.20104641,113120.0,113110.0,1.33770825]
[1754151902163,0.20104641,113120.0,113110.0,1.50158825]
[1754151902824,0.20104641,113120.0,113110.0,1.52658825]
[1754151903270,0.20104641,113120.0,113110.0,1.85555309]
[1754151903487,0.20104641,113120.0,113110.0,1.52658825]
[1754151905481,0.20104641,113120.0,113110.0,1.50158825]
[1754151905703,0.20104641,113120.0,113110.0,1.52654825]
[1754151911468,0.20104641,113120.0,113110.0,1.85551309]
[1754151915198,0.20104641,113120.0,113110.0,1.71667309]
[1754151915422,0.20104641,113120.0,113110.0,1.85547309]
[1754151916952,0.20104641,113120.0,113110.0,1.85543309]
[1754151917199,0.20104641,113120.0,113110.0,1.71667309]
[1754151917410,0.20104641,113120.0,113110.0,1.85543309]
[1754151918917,0.20104641,113120.0,113110.0,2.20841702]
[1754151919122,0.20104641,113120.0,113110.0,2.22586604]
[1754151922012,0.20104641,113120.0,113110.0,2.20119174]
[1754151922812,0.20104641,113120.0,113110.0,1.87237091]
[1754151924661,0.20104641,113120.0,113110.0,1.89700521]
[1754151930786,0.20104641,113120.0,113110.0,2.37573445]
[1754151930787,0.12672396,113120.0,113110.0,2.37573445]
[1754151931002,0.11123149,113120.0,113110.0,2.37573445]
[1754151931227,0.0004,113140.0,113130.0,0.06744902]
[1754151931451,0.00044799,113140.0,113130.0,1.89042647]
[1754151931664,0.00044799,113140.0,113130.0,1.91285093]
[1754151931885,0.00044799,113140.0,113130.0,1.94974093]
[1754151932095,0.00044799,113140.0,113130.0,1.96397493]
[1754151933199,0.00044799,113140.0,113130.0,1.96897493]
[1754151934278,0.00044799,113140.0,113130.0,2.11897493]
[1754151934503,0.00044799,113140.0,113130.0,2.11397493]
[1754151934932,0.00044799,113140.0,113130.0,2.11697493]
[1754151935382,0.0004,113150.0,113140.0,1.34134479]
[1754151935596,0.0004,113150.0,113140.0,1.56618468]
[1754151935827,0.0004,113150.0,113140.0,1.60307468]
[1754151936537,0.0004,113150.0,113140.0,1.60961568]
[1754151936769,0.0004,113150.0,113140.0,1.47101568]
[1754151936987,0.0004,113150.0,113140.0,1.60957568]
[1754151938097,0.0004,113150.0,113140.0,1.61257568]
[1754151940618,0.0004,113160.0,113140.0,1.61257568]
[1754151940619,0.0004,113160.0,113150.0,0.82630103]
[1754151940841,0.00044798,113160.0,113150.0,2.08263864]
[1754151941064,0.00044798,113160.0,113150.0,2.10779396]
[1754151941970,0.00044798,113160.0,113150.0,2.11179396]
[1754151942454,0.00044798,113160.0,113150.0,2.11679396]
[1754151946707,0.00044798,113160.0,113150.0,2.10829396]
[1754151946921,0.0004,113170.0,113160.0,0.67585305]
[1754151947146,0.00087984,113170.0,113160.0,1.91191598]
[1754151947364,0.00087984,113170.0,113160.0,1.94880598]
[1754151947839,0.00087984,113170.0,113160.0,1.95771598]
[1754151948933,0.00087984,113170.0,113160.0,1.96071598]
[1754151949397,0.00087984,113170.0,113160.0,1.97071598]
[1754151951399,0.00087984,113170.0,113160.0,1.97371598]
[1754151952829,0.0004,113180.0,113170.0,0.63252419]
[1754151953026,0.30237805,113240.0,113180.0,0.04244902]
[1754151953261,0.01382825,113230.0,113210.0,0.32872924]
[1754151953485,0.00824771,113230.0,113220.0,0.22259989]
[1754151955073,0.01058771,113230.0,113220.0,0.22259989]
[1754151955777,0.01258771,113230.0,113220.0,0.22259989]
[1754151956400,0.0264148,113230.0,113220.0,0.22259989]
[1754151958409,0.35514404,113230.0,113220.0,0.08419989]
[1754151958620,0.35514404,113230.0,113220.0,0.22255989]
[1754151959584,0.0264148,113230.0,113220.0,0.22255989]
[1754151960267,0.01816709,113230.0,113220.0,0.22255989]
[1754151960487,0.02643394,113230.0,113220.0,0.22255989]
[1754151960730,0.35516318,113230.0,113220.0,0.22255989]
[1754151961649,0.36136597,113230.0,113220.0,0.22255989]
[1754151961872,0.35516318,113230.0,113220.0,0.22255989]
[1754151962325,0.36136783,113230.0,113220.0,0.22255989]
[1754151962770,0.35516318,113230.0,113220.0,0.22255989]
[1754151963264,0.36136991,113230.0,113220.0,0.22255989]
[1754151963502,0.36137869,113230.0,113220.0,0.22251989]
[1754151964173,0.36137869,113230.0,113220.0,0.08419989]
[1754151964394,0.36137869,113230.0,113220.0,0.22251989]
[1754151973370,0.36137869,113230.0,113220.0,0.08419989]
[1754151973603,5.0,113220.0,113190.0,0.00294]
[1754151973846,0.32872924,113210.0,113200.0,0.22247989]
[1754151974088,0.33934487,113210.0,113200.0,0.22247989]
[1754151974423,0.33934487,113210.0,113190.0,0.03819]
[1754151974573,0.33934487,113210.0,113200.0,0.13828]
[1754151974805,0.33700487,113210.0,113200.0,0.13828]
[1754151975275,0.34556072,113210.0,113180.0,0.07004334]
[1754151975506,0.33106924,113200.0,113190.0,0.13828]
[1754151975739,0.33934487,113200.0,113190.0,0.13828]
[1754151975980,0.34555633,113200.0,113190.0,0.13828]
[1754151976205,0.34555633,113200.0,113180.0,0.13828]
[1754151976437,0.00234,113190.0,113170.0,0.03819]
[1754151976664,0.00234,113190.0,113180.0,0.13828]
[1754151976907,0.00234,113190.0,113170.0,0.12238989]
[1754151977125,0.00234,113190.0,113180.0,0.13828]
[1754151978583,0.33106924,113190.0,113170.0,0.11944989]
[1754151978803,0.67106924,113190.0,113170.0,0.22247989]
[1754151979021,0.67106924,113190.0,113170.0,0.08419989]
[1754151979248,0.67206924,113190.0,113170.0,0.22647989]
[1754151980168,0.67206924,113190.0,113170.0,0.26172989]
[1754151980623,0.67206924,113190.0,113170.0,0.26168989]
[1754151980859,0.67206924,113190.0,113170.0,0.12638989]
[1754151981097,0.67206924,113190.0,113170.0,0.12344989]
[1754151981317,0.67206924,113190.0,113170.0,0.26172989]
[1754151981894,0.67206924,113190.0,113170.0,0.26466989]
[1754151982403,0.67206924,113190.0,113170.0,0.26172989]
[1754151982865,0.67206924,113190.0,113170.0,0.12344989]
[1754151983098,0.67206924,113190.0,113170.0,0.26168989]
[1754151984220,0.34334,113190.0,113170.0,0.26168989]
[1754151984437,0.67206924,113190.0,113170.0,0.26168989]
[1754151984662,0.67206924,113190.0,113170.0,0.26462989]
[1754151984852,0.34334,113190.0,113170.0,0.26462989]
[1754151985084,0.67206924,113190.0,113170.0,0.26462989]
[1754151985530,0.32872924,113180.0,113170.0,0.26168989]
[1754151986263,0.01383259,113180.0,113170.0,0.26168989]
[1754151986716,0.01383259,113180.0,113170.0,0.25768989]
[1754151986949,0.01383259,113180.0,113170.0,0.26668989]
[1754151986950,0.04090586,113180.0,113170.0,0.26668989]
[1754151987164,0.01483259,113180.0,113170.0,0.26966989]
[1754151989982,0.04105911,113180.0,113170.0,0.26966989]
[1754151990207,0.01483259,113180.0,113170.0,0.26966989]
[1754151990419,0.01483259,113180.0,113170.0,0.27172989]
[1754151992235,0.04050071,113180.0,113170.0,0.27172989]
[1754151992458,0.01483259,113180.0,113170.0,0.27172989]
[1754151992681,0.01483259,113180.0,113170.0,0.60045913]
[1754151993139,0.01483259,113180.0,113170.0,0.27172989]
[1754151993881,0.00780823,113180.0,113170.0,0.27172989]
[1754151994546,0.33653747,113180.0,113170.0,0.27172989]
[1754151995669,0.36246682,113180.0,113170.0,0.27172989]
[1754151996121,0.03373758,113180.0,113170.0,0.27172989]
[1754151996904,0.36246682,113180.0,113170.0,0.04929]
[1754151997103,0.36246682,113180.0,113170.0,0.18543]
[1754151997321,0.36246682,113180.0,113170.0,0.18245]
[1754151997583,0.35246682,113180.0,113170.0,0.18245]
[1754151997790,0.69246682,113180.0,113170.0,0.18245]
[1754151997987,0.70629981,113180.0,113170.0,0.18245]
[1754151998198,0.69246682,113180.0,113170.0,0.18245]
[1754151999856,0.70629961,113180.0,113170.0,0.009]
[1754152000722,5.70732961,113180.0,113170.0,0.009]
[1754152000942,5.7915295,113180.0,113170.0,0.009]
[1754152001190,0.74745136,113180.0,113170.0,0.009]
[1754152001600,5.74745136,113180.0,113170.0,0.009]
[1754152002665,0.35744902,113170.0,113140.0,0.10876334]
[1754152002877,0.66872924,113150.0,113140.0,0.10924318]
[1754152003082,0.66872924,113150.0,113140.0,0.11130318]
[1754152003296,0.4782,113150.0,113140.0,0.11130318]
[1754152003504,0.4782,113150.0,113140.0,0.52423231]
[1754152003722,0.34,113150.0,113140.0,0.52423231]
[1754152004351,0.34,113150.0,113140.0,0.12545973]
[1754152006114,0.34,113150.0,113140.0,0.04625984]
[1754152007846,0.35383678,113150.0,113140.0,0.04625984]
[1754152010376,0.3621008,113150.0,113140.0,0.04625984]
[1754152012755,0.69083004,113150.0,113140.0,0.00547984]
[1754152012968,0.69702451,113150.0,113140.0,0.00547984]
[1754152013416,0.36829527,113150.0,113140.0,0.04121984]
[1754152013897,0.69805451,113150.0,113140.0,0.00547984]
[1754152014136,0.69805451,113150.0,113140.0,0.00047984]
[1754152014366,0.68421773,113150.0,113140.0,0.00347984]
[1754152014820,0.35648849,113150.0,113140.0,0.00347984]
[1754152015052,5.68521773,113150.0,113140.0,0.00347984]
[1754152015279,5.44068838,113150.0,113140.0,0.00347984]
[1754152015513,5.76941762,113150.0,113140.0,0.00347984]
[1754152015981,5.68521773,113150.0,113140.0,0.00347984]
[1754152017158,5.69905578,113150.0,113140.0,0.00347984]
[1754152018330,0.69905578,113150.0,113140.0,0.00347984]
[1754152018790,5.69802578,113150.0,113140.0,0.00347984]
[1754152019049,5.69802578,113150.0,113140.0,0.04484984]
[1754152019703,5.83654578,113150.0,113140.0,0.04484984]
[1754152021128,5.50781654,113150.0,113140.0,0.04484984]
[1754152021577,5.36929654,113150.0,113140.0,0.04484984]
[1754152021803,0.36929654,113150.0,113140.0,0.04484984]
[1754152022033,0.50789654,113150.0,113140.0,0.04484984]
[1754152022280,0.5078752,113150.0,113140.0,0.04484984]
[1754152022516,0.3692752,113150.0,113140.0,0.04484984]
[1754152022748,0.35543715,113150.0,113140.0,0.04484984]
[1754152022975,0.3492498,113150.0,113140.0,0.04484984]
[1754152023225,0.35543805,113150.0,113140.0,0.04484984]
[1754152025071,0.36927509,113150.0,113140.0,0.04484984]
[1754152029885,5.69800433,113150.0,113140.0,0.00347984]
[1754152030159,0.69800433,113150.0,113140.0,0.00347984]
[1754152030374,5.36927509,113150.0,113140.0,0.00347984]
[1754152030605,5.69800433,113150.0,113140.0,0.00347984]
[1754152030828,5.69801584,113150.0,113140.0,0.03964984]
[1754152031995,5.3692866,113150.0,113140.0,0.04285984]
[1754152032659,5.3692866,113150.0,113140.0,0.04484984]
[1754152033650,5.5086466,113150.0,113140.0,0.04484984]
[1754152034523,5.50244684,113150.0,113140.0,0.04484984]
[1754152034746,5.50865028,113150.0,113140.0,0.04484984]
[1754152035390,5.16144684,113150.0,113140.0,0.04484984]
[1754152036702,5.1476098,113150.0,113140.0,0.04484984]
[1754152037350,5.153816,113150.0,113140.0,0.04484984]
[1754152039100,5.493816,113150.0,113140.0,0.04484984]
[1754152039304,5.47936,113150.0,113140.0,0.04484984]
[1754152039537,5.50768234,113150.0,113140.0,0.04484984]
[1754152043303,5.49299729,113150.0,113140.0,0.04484984]
[1754152043522,0.50127939,113150.0,113140.0,0.04484984]
[1754152043746,0.49299729,113150.0,113140.0,0.04484984]
[1754152044171,0.35383729,113150.0,113140.0,0.04484984]
[1754152044384,0.49299729,113150.0,113140.0,0.04484984]
[1754152045280,0.49295729,113150.0,113140.0,0.04484984]
[1754152053696,0.49267729,113150.0,113140.0,0.04484984]
[1754152054606,0.35383729,113150.0,113140.0,0.45777897]
[1754152056636,0.35383729,113150.0,113140.0,0.59661897]
[1754152059780,0.16241758,113180.0,113140.0,0.59661897]
[1754152060033,5.5,113170.0,113160.0,0.32872924]
[1754152060289,0.34,113160.0,113150.0,0.55160913]
[1754152060547,0.34,113160.0,113150.0,0.22486989]
[1754152060784,0.3538358,113160.0,113150.0,0.55359913]
[1754152061021,0.0138358,113160.0,113150.0,0.59203913]
[1754152061976,0.0138358,113160.0,113150.0,0.26330989]
[1754152062221,0.0138358,113160.0,113150.0,0.27030989]
[1754152062479,0.0138358,113160.0,113150.0,0.59203913]
[1754152062709,0.5138358,113160.0,113150.0,0.59203913]
[1754152062939,0.5138358,113160.0,113150.0,0.60003913]
[1754152063763,0.5138358,113160.0,113150.0,0.60203913]
[1754152063975,0.5,113160.0,113150.0,0.60203913]
[1754152066855,0.50253758,113180.0,113150.0,0.60203913]
[1754152067111,0.36373758,113180.0,113160.0,0.32872924]
[1754152067383,0.36373758,113180.0,113170.0,0.14075]
[1754152067637,0.36373758,113180.0,113170.0,0.17919]
[1754152068055,0.02373758,113180.0,113170.0,0.59211913]
[1754152068268,0.37757133,113180.0,113170.0,0.59211913]
[1754152068484,0.01383375,113180.0,113170.0,0.59211913]
[1754152069740,0.01383375,113180.0,113170.0,0.59611913]
[1754152069956,0.04968073,113180.0,113170.0,0.59611913]
[1754152070158,0.01383375,113180.0,113170.0,0.59611913]
[1754152070842,0.01383375,113180.0,113170.0,0.26738989]
[1754152071258,0.01383375,113180.0,113170.0,0.26527989]
[1754152071950,0.01383375,113180.0,113170.0,0.12663989]
[1754152072200,0.01383375,113180.0,113170.0,0.22683989]
[1754152072421,0.01589375,113180.0,113170.0,0.13864]
[1754152072643,0.05140375,113180.0,113170.0,0.13864]
[1754152072864,0.08724354,113180.0,113170.0,0.13864]
[1754152073324,5.0,113170.0,113160.0,0.13876]
[1754152073556,5.00206,113170.0,113150.0,0.1388]
[1754152073774,0.03991,113170.0,113150.0,0.22299989]
[1754152074478,0.03991,113170.0,113150.0,0.25842989]
[1754152074610,0.03991,113170.0,113150.0,0.26143989]
[1754152075260,0.03757,113170.0,113150.0,0.26143989]
[1754152075464,0.03757,113170.0,113150.0,0.59120913]
[1754152075675,0.03757,113170.0,113160.0,0.0379]
[1754152076100,0.00206,113170.0,113160.0,0.0379]
[1754152076507,0.01589434,113170.0,113160.0,0.0379]
[1754152076960,0.01589434,113170.0,113160.0,0.04318]
[1754152077367,0.01689434,113170.0,113160.0,0.04318]
[1754152077559,0.01483434,113170.0,113160.0,0.45610913]
[1754152078133,0.01483434,113170.0,113160.0,0.45710913]
[1754152078568,0.05267434,113170.0,113160.0,0.13964]
[1754152078792,0.72383358,113170.0,113160.0,0.001]
[1754152079020,0.39410434,113170.0,113160.0,0.001]
[1754152080171,0.38283358,113170.0,113160.0,0.001]
[1754152080632,0.35579434,113170.0,113160.0,0.04203]
[1754152080835,0.35579434,113170.0,113160.0,0.04418]
[1754152081255,0.35383434,113170.0,113160.0,0.37190924]
[1754152081891,0.01383434,113170.0,113160.0,0.45610913]
[1754152082944,0.01383434,113170.0,113160.0,0.45810913]
[1754152083154,0.01383434,113170.0,113160.0,0.45610913]
[1754152083567,0.01383434,113170.0,113160.0,0.45910913]
[1754152085932,0.17460891,113190.0,113160.0,0.45910913]
[1754152086144,0.17460891,113190.0,113170.0,0.50839924]
[1754152086355,0.03592891,113190.0,113170.0,0.17967]
[1754152086583,0.6929225,113200.0,113180.0,0.04318]
[1754152086839,0.50220319,113200.0,113180.0,0.04318]
[1754152087276,0.00196,113190.0,113180.0,0.04318]
[1754152087968,0.00296,113190.0,113180.0,0.04318]
[1754152088437,0.03833658,113190.0,113180.0,0.04318]
[1754152088679,0.49489924,113200.0,113180.0,0.04318]
[1754152088957,0.001,113190.0,113180.0,0.04318]
[1754152089653,0.49502638,113200.0,113180.0,0.04318]
[1754152089865,0.50229726,113200.0,113180.0,0.04318]
[1754152090078,0.51612968,113200.0,113180.0,0.04318]
[1754152090301,0.00196,113190.0,113180.0,0.04418]
[1754152090537,0.00196,113190.0,113180.0,0.04318]
[1754152090791,0.0381711,113190.0,113180.0,0.04318]
[1754152091034,0.00196,113190.0,113180.0,0.04318]
[1754152091409,0.00196,113190.0,113180.0,0.04418]
[1754152091854,0.00296,113190.0,113180.0,0.04418]
[1754152092658,0.001,113190.0,113180.0,0.04418]
[1754152093080,0.001,113190.0,113180.0,0.37290924]
[1754152093343,0.001,113190.0,113180.0,0.04418]
[1754152094096,0.0367448,113190.0,113180.0,0.04418]
[1754152097239,0.05057733,113190.0,113180.0,0.04418]
[1754152097906,0.05057733,113190.0,113180.0,0.1825]
[1754152100498,0.39057733,113190.0,113180.0,0.04418]
[1754152100706,0.39057733,113190.0,113180.0,0.18254]
[1754152103784,0.3767448,113190.0,113180.0,0.18254]
[1754152104235,0.3787048,113190.0,113180.0,0.04418]
[1754152104462,0.70986404,113190.0,113180.0,0.13932]
[1754152104707,0.70986404,113190.0,113180.0,0.001]
[1754152106054,0.3811348,113190.0,113180.0,0.001]
[1754152106717,0.5194548,113190.0,113180.0,0.001]
[1754152106936,0.53328761,113190.0,113180.0,0.001]
[1754152107157,0.53328761,113190.0,113180.0,0.03648]
[1754152107403,0.53085761,113190.0,113180.0,0.03648]
[1754152107839,0.53085761,113190.0,113180.0,0.001]
[1754152108516,0.86541685,113190.0,113180.0,0.001]
[1754152109867,0.94961674,113190.0,113180.0,0.001]
[1754152110299,6.03381663,113190.0,113180.0,0.001]
[1754152110527,6.3708227,113190.0,113180.0,0.001]
[1754152111199,6.3770304,113190.0,113180.0,0.001]
[1754152111921,6.10248544,113190.0,113180.0,0.001]
[1754152112181,1.10248544,113190.0,113180.0,0.001]
[1754152112418,6.10248544,113190.0,113180.0,0.001]
[1754152112842,5.7737562,113190.0,113180.0,0.001]
[1754152113131,5.809935,113190.0,113180.0,0.001]
[1754152114059,5.79610219,113190.0,113180.0,0.001]
[1754152114536,5.46737295,113190.0,113180.0,0.001]
[1754152114749,5.79270219,113190.0,113180.0,0.001]
[1754152115036,5.78649449,113190.0,113180.0,0.001]
[1754152116164,5.45776525,113190.0,113180.0,0.001]
[1754152116429,5.78406449,113190.0,113180.0,0.03648]
[1754152116890,5.86826438,113190.0,113180.0,0.03648]
[1754152117115,5.79789862,113190.0,113180.0,0.03648]
[1754152117327,5.46916938,113190.0,113180.0,0.03648]
[1754152117546,5.79789862,113190.0,113180.0,0.03648]
[1754152117768,5.82447262,113190.0,113180.0,0.03648]
[1754152118211,5.82446575,113190.0,113180.0,0.03648]
[1754152118675,5.82446519,113190.0,113180.0,0.03648]
[1754152118940,5.81619579,113190.0,113180.0,0.03648]
[1754152119160,5.82446521,113190.0,113180.0,0.03648]
[1754152119388,5.81619579,113190.0,113180.0,0.03648]
[1754152120714,5.82294579,113190.0,113180.0,0.001]
[1754152121633,5.49421655,113190.0,113180.0,0.001]
[1754152121878,5.82294579,113190.0,113180.0,0.001]
[1754152124603,5.8312145,113190.0,113180.0,0.001]
[1754152125512,0.8312145,113190.0,113180.0,0.001]
[1754152125746,5.8312145,113190.0,113180.0,0.001]
[1754152126195,5.8268945,113190.0,113180.0,0.001]
[1754152126932,5.49816526,113190.0,113180.0,0.03648]
[1754152127161,5.8244645,113190.0,113180.0,0.03648]
[1754152127631,5.41153537,113190.0,113180.0,0.03953]
[1754152127860,5.40130666,113190.0,113180.0,0.0416]
[1754152128129,5.71620177,113190.0,113180.0,0.0416]
[1754152128353,5.73003574,113190.0,113180.0,0.0416]
[1754152129272,5.4013065,113190.0,113180.0,0.0416]
[1754152132072,5.73201574,113190.0,113180.0,0.0416]
[1754152132549,5.4032865,113190.0,113180.0,0.0416]
[1754152132790,5.73201574,113190.0,113180.0,0.0416]
[1754152133023,5.73201574,113190.0,113180.0,0.03953]
[1754152133244,5.73201574,113190.0,113180.0,0.03648]
[1754152133458,5.74029048,113190.0,113180.0,0.03648]
[1754152133932,5.8173964,113190.0,113180.0,0.001]
[1754152134156,5.8173967,113190.0,113180.0,0.001]
[1754152134379,5.82360291,113190.0,113180.0,0.001]
[1754152135353,5.49487367,113190.0,113180.0,0.001]
[1754152135575,5.82360291,113190.0,113180.0,0.001]
[1754152137943,5.81928291,113190.0,113180.0,0.001]
[1754152138165,5.83311715,113190.0,113180.0,0.001]
[1754152138639,5.83069715,113190.0,113180.0,0.001]
[1754152138876,5.82871715,113190.0,113180.0,0.0446]
[1754152139312,5.83068715,113190.0,113180.0,0.0446]
[1754152141925,5.83069594,113190.0,113180.0,0.0446]
[1754152142367,5.89783911,113190.0,113180.0,0.04162]
[1754152142579,5.89783911,113190.0,113180.0,0.03952]
[1754152142818,5.83069594,113190.0,113180.0,0.03952]
[1754152143911,5.8168617,113190.0,113180.0,0.03952]
[1754152144361,5.6785417,113190.0,113180.0,0.04162]
[1754152144575,5.8148917,113190.0,113180.0,0.0446]
[1754152144767,5.81490418,113190.0,113180.0,0.0446]
[1754152145117,5.81490418,113190.0,113180.0,0.001]
[1754152145118,5.81687418,113190.0,113180.0,0.001]
[1754152145559,5.8168747,113190.0,113180.0,0.03952]
[1754152145995,5.8168747,113190.0,113180.0,0.001]
[1754152146625,5.8168747,113190.0,113180.0,0.03952]
[1754152147935,5.83070859,113190.0,113180.0,0.03952]
[1754152148591,5.50197935,113190.0,113180.0,0.03952]
[1754152148797,5.83070859,113190.0,113180.0,0.03952]
[1754152149034,5.50197935,113190.0,113180.0,0.03952]
[1754152149241,5.83070859,113190.0,113180.0,0.03952]
[1754152152716,5.91490848,113190.0,113180.0,0.03952]
[1754152153150,5.91490848,113190.0,113180.0,0.001]
[1754152153368,6.24975772,113190.0,113180.0,0.001]
[1754152153657,6.16555783,113190.0,113180.0,0.001]
[1754152153870,6.15172394,113190.0,113180.0,0.001]